fUST/lending_fUST_20250206
["ID","MTS","AMOUNT","RATE_DAILY","PERIOD"]
[351838498,1738810248570,-626.95808142,0.00013835,2]
[351838499,1738810248580,-500.0,0.00013835,2]
[351838500,1738810248590,-595.69,0.00013835,2]
[351838501,1738810248599,-500.0,0.00013835,2]
[351838502,1738810248609,-500.0,0.00013835,2]
[351838503,1738810248619,-7281.56,0.00013835,2]
[351838504,1738810248629,-234.711113,0.00013835,2]
[351838505,1738810248639,-234.711113,0.00013835,2]
[351838506,1738810248650,-500.0,0.00013835,2]
[351838507,1738810248660,-234.711113,0.00013835,2]
[351838508,1738810248670,-234.711113,0.00013835,2]
[351838509,1738810248683,-151.0,0.00013835,2]
[351838510,1738810248697,-863.9,0.00013835,2]
[351838511,1738810248715,-151.0,0.00013835,2]
[351838512,1738810248726,-152.2958,0.00013835,2]
[351838513,1738810248737,-500.0,0.00013835,2]
[351838514,1738810248747,-500.0,0.00013835,2]
[351838515,1738810248759,-500.0,0.00013835,2]
[351838516,1738810248770,-556.82,0.00013835,2]
[351838517,1738810248781,-500.0,0.00013835,2]
[351838518,1738810248791,-500.0,0.00013835,2]
[351838519,1738810248801,-500.0,0.00013835,2]
[351838520,1738810248811,-500.0,0.00013835,2]
[351838521,1738810248822,-704.72,0.00013835,2]
[351838522,1738810248832,-528.67,0.00013835,2]
[351838523,1738810248842,-500.0,0.00013835,2]
[351838524,1738810248852,-899.72,0.00013835,2]
[351838525,1738810248862,-501.39986483,0.00013835,2]
[351838526,1738810248871,-154.288381,0.00013835,2]
[351838527,1738810248882,-500.0,0.00013835,2]
[351838528,1738810248894,-501.76569604,0.00013835,2]
[351838529,1738810248904,-500.0,0.00013835,2]
[351838530,1738810248915,-7543.26,0.00013835,2]
[351838531,1738810248925,-540.66,0.00013835,2]
[351838532,1738810248939,-604.88,0.00013835,2]
[351838533,1738810248949,-500.0,0.00013835,2]
[351838534,1738810248960,-11845.41,0.00013835,2]
[351838535,1738810248971,-31217.99,0.00013835,2]
[351838536,1738810248982,-151.0,0.00013835,2]
[351838537,1738810248993,-151.0,0.00013835,2]
[351838538,1738810249004,-1119.91,0.00013835,2]
[351838539,1738810249016,-500.0,0.00013835,2]
[351838540,1738810249027,-500.0,0.00013835,2]
[351838541,1738810249038,-1305.21,0.00013835,2]
[351838542,1738810249049,-500.0,0.00013835,2]
[351838543,1738810249059,-2282.76,0.00013835,2]
[351838544,1738810249071,-160.052569,0.00013835,2]
[351838545,1738810249081,-9743.14806663,0.00013848,2]
[351838546,1738810249092,-500.88409035,0.00013873,2]
[351838547,1738810249101,-500.63208643,0.00013873,2]
[351838548,1738810249112,-500.0,0.00013873,2]
[351838549,1738810249123,-501.67028989,0.00013873,2]
[351838550,1738810249133,-500.0,0.00013873,2]
[351838551,1738810249145,-500.0,0.00013873,2]
[351838552,1738810249155,-500.4205007,0.00013873,2]
[351838553,1738810249166,-151.0,0.000139,2]
[351838554,1738810249176,-151.0,0.000139,2]
[351838555,1738810249185,-151.0,0.000139,2]
[351838556,1738810249195,-151.0,0.000139,2]
[351838557,1738810249205,-415.7766744,0.000139,2]
[351838558,1738810249215,-386.9731013,0.000139,2]
[351838559,1738810249224,-354.3521271,0.000139,2]
[351838560,1738810249234,-154.1511157,0.000139,2]
[351838561,1738810249244,-215.6590378,0.000139,2]
[351838562,1738810249254,-153.6091627,0.000139,2]
[351838563,1738810249264,-354.6875562,0.000139,2]
[351838564,1738810249274,-204.7565813,0.000139,2]
[351838565,1738810249284,-317.0346464,0.000139,2]
[351838566,1738810249294,-233.8645581,0.000139,2]
[351838567,1738810249304,-354.6875562,0.000139,2]
[351838568,1738810249314,-154.5349496,0.000139,2]
[351838569,1738810249324,-153.0,0.000139,2]
[351838570,1738810249334,-354.6875562,0.000139,2]
[351838571,1738810249344,-154.5349496,0.000139,2]
[351838572,1738810249354,-306.0,0.000139,2]
[351838573,1738810249364,-153.0,0.000139,2]
[351838574,1738810249375,-215.7447597,0.000139,2]
[351838575,1738810249386,-354.6875562,0.000139,2]
[351838576,1738810249399,-153.0,0.000139,2]
[351838577,1738810249409,-154.5349496,0.000139,2]
[351838578,1738810249419,-215.7447597,0.000139,2]
[351838579,1738810249429,-153.0,0.000139,2]
[351838580,1738810249439,-154.5349496,0.000139,2]
[351838581,1738810249449,-215.7447597,0.000139,2]
[351838582,1738810249459,-354.6875562,0.000139,2]
[351838583,1738810249470,-151.0,0.00013962,2]
[351838584,1738810249479,-151.0,0.00013962,2]
[351838585,1738810249618,-151.0,0.00013962,2]
[351838586,1738810249628,-151.0,0.00013962,2]
[351838587,1738810249637,-151.0,0.00013962,2]
[351838588,1738810249648,-151.0,0.00013962,2]
[351838589,1738810249658,-248.4522041,0.0001397,2]
[351838590,1738810249667,-160.0,0.00013971,2]
[351838591,1738810249677,-500.0,0.00013972,2]
[351838592,1738810249686,-500.0,0.00013972,2]
[351838593,1738810249696,-397.14071428,0.00013972,2]
[351838594,1738810249705,-500.0,0.00013972,2]
[351838595,1738810249715,-500.0,0.00013972,2]
[351838596,1738810249724,-505.36296335,0.00013972,2]
[351838597,1738810249734,-500.0,0.00013972,2]
[351838598,1738810249743,-500.0,0.00013972,2]
[351838599,1738810249752,-508.31870863,0.00013972,2]
[351838600,1738810249762,-500.0,0.00013972,2]
[351838601,1738810249771,-504.26,0.00013972,2]
[351838602,1738810249781,-500.0,0.00013972,2]
[351838603,1738810249790,-502.66172929,0.00013972,2]
[351838604,1738810249800,-500.0,0.00013972,2]
[351838605,1738810249809,-500.0,0.00013972,2]
[351838606,1738810249819,-643.56988493,0.00013972,2]
[351838607,1738810249828,-500.0,0.00013972,2]
[351838608,1738810249837,-500.0,0.00013972,2]
[351838609,1738810249847,-500.0,0.00013972,2]
[351838610,1738810249856,-500.0,0.00013972,2]
[351838611,1738810249865,-1101.0,0.00013972,2]
[351838612,1738810249874,-632.9,0.00013972,2]
[351838613,1738810249883,-500.0,0.00013972,2]
[351838614,1738810249894,-642.74,0.00013972,2]
[351838615,1738810249903,-500.0,0.00013972,2]
[351838616,1738810249912,-885.12,0.00013972,2]
[351838617,1738810249922,-500.0,0.00013972,2]
[351838618,1738810249934,-500.0,0.00013972,2]
[351838619,1738810249943,-500.0,0.00013972,2]
[351838620,1738810249953,-500.0,0.00013972,2]
[351838621,1738810249963,-500.0,0.00013972,2]
[351838622,1738810249974,-500.0,0.00013972,2]
[351838623,1738810249983,-504.38848538,0.00013972,2]
[351838624,1738810249993,-500.0,0.00013972,2]
[351838625,1738810250002,-509.91543885,0.00013972,2]
[351838626,1738810250012,-503.41772027,0.00013972,2]
[351838627,1738810250022,-860.71,0.00013972,2]
[351838628,1738810250031,-500.0,0.00013972,2]
[351838629,1738810250041,-665.7,0.00013972,2]
[351838630,1738810250050,-545.84,0.00013972,2]
[351838631,1738810250059,-533.43,0.00013972,2]
[351838632,1738810250069,-500.0,0.00013972,2]
[351838633,1738810250078,-500.0,0.00013972,2]
[351838634,1738810250087,-500.0,0.00013972,2]
[351838635,1738810250097,-500.0,0.00013972,2]
[351838636,1738810250107,-676.96,0.00013972,2]
[351838637,1738810250116,-500.0,0.00013972,2]
[351838638,1738810250126,-529.83,0.00013972,2]
[351838639,1738810250135,-500.0,0.00013972,2]
[351838640,1738810250146,-151.0,0.00013972,2]
[351838641,1738810250156,-500.0,0.00013972,2]
[351838642,1738810250165,-500.0,0.00013972,2]
[351838643,1738810250175,-536.84,0.00013972,2]
[351838644,1738810250184,-1345.02,0.00013972,2]
[351838645,1738810250193,-500.0,0.00013972,2]
[351838646,1738810250202,-1193.18,0.00013972,2]
[351838647,1738810250212,-1000.0,0.00013972,2]
[351838648,1738810250221,-500.0,0.00013972,2]
[351838649,1738810250231,-500.0,0.00013972,2]
[351838650,1738810250241,-616.55,0.00013972,2]
[351838651,1738810250251,-533.59,0.00013972,2]
[351838652,1738810250260,-500.0,0.00013972,2]
[351838653,1738810250269,-466.71739335,0.00013972,2]
[351838654,1738810250279,-778.79,0.00013972,2]
[351838655,1738810250289,-1278.63,0.00013972,2]
[351838656,1738810250298,-152.58367,0.00013972,2]
[351838657,1738810250307,-500.0,0.00013972,2]
[351838658,1738810250317,-706.88,0.00013972,2]
[351838659,1738810250327,-640.8,0.00013972,2]
[351838660,1738810250336,-707.77,0.00013972,2]
[351838661,1738810250346,-500.0,0.00013972,2]
[351838662,1738810250355,-500.0,0.00013972,2]
[351838663,1738810250365,-500.0,0.00013972,2]
[351838664,1738810250375,-500.0,0.00013972,2]
[351838665,1738810250385,-500.0,0.00013972,2]
[351838666,1738810250396,-723.16,0.00013972,2]
[351838667,1738810250406,-500.0,0.00013972,2]
[351838668,1738810250416,-738.14,0.00013972,2]
[351838669,1738810250426,-151.0,0.00013972,2]
[351838670,1738810250435,-151.0,0.00013972,2]
[351838671,1738810250445,-500.0,0.00013972,2]
[351838672,1738810250454,-151.0,0.00013972,2]
[351838673,1738810250464,-151.0,0.00013972,2]
[351838674,1738810250473,-500.0,0.00013972,2]
[351838675,1738810250483,-618.66,0.00013972,2]
[351838676,1738810250492,-894.26,0.00013972,2]
[351838677,1738810250502,-1179.85,0.00013972,2]
[351838678,1738810250511,-500.0,0.00013972,2]
[351838679,1738810250521,-500.0,0.00013972,2]
[351838680,1738810250531,-2155.9,0.00013972,2]
[351838681,1738810250540,-500.0,0.00013972,2]
[351838682,1738810250550,-500.0,0.00013972,2]
[351838683,1738810250559,-500.0,0.00013972,2]
[351838684,1738810250569,-530.32,0.00013972,2]
[351838685,1738810250579,-2244.57,0.00013972,2]
[351838686,1738810250588,-151.0,0.00013972,2]
[351838687,1738810250598,-506.25277355,0.00013972,2]
[351838688,1738810250609,-151.0,0.00013972,2]
[351838689,1738810250618,-161.690545,0.00013972,2]
[351838690,1738810250628,-910.41,0.00013972,2]
[351838691,1738810250638,-769.56,0.00013972,2]
[351838692,1738810250650,-500.0,0.00013972,2]
[351838693,1738810250659,-500.0,0.00013972,2]
[351838694,1738810250669,-500.0,0.00013972,2]
[351838695,1738810250678,-151.0,0.00013972,2]
[351838696,1738810250688,-500.0,0.00013972,2]
[351838697,1738810250698,-151.0,0.00013972,2]
[351838698,1738810250707,-500.0,0.00013972,2]
[351838699,1738810250717,-151.0,0.00013972,2]
[351838700,1738810250727,-500.0,0.00013972,2]
[351838701,1738810250736,-500.0,0.00013972,2]
[351838702,1738810250746,-988.87,0.00013972,2]
[351838703,1738810250755,-500.0,0.00013972,2]
[351838704,1738810250765,-1152.65,0.00013972,2]
[351838705,1738810250775,-619.31,0.00013972,2]
[351838706,1738810250786,-262.09414003,0.00013972,2]
[351838707,1738810250795,-658.54,0.00013972,2]
[351838708,1738810250805,-500.0,0.00013972,2]
[351838709,1738810250815,-500.0,0.00013972,2]
[351838710,1738810250825,-1052.38,0.00013972,2]
[351838711,1738810250835,-685.81,0.00013972,2]
[351838712,1738810250844,-1187.83,0.00013972,2]
[351838713,1738810250854,-574.76,0.00013972,2]
[351838714,1738810250864,-500.0,0.00013972,2]
[351838715,1738810250873,-714.0,0.00013972,2]
[351838716,1738810250883,-500.0,0.00013972,2]
[351838717,1738810250899,-662.54,0.00013972,2]
[351838718,1738810250909,-500.0,0.00013972,2]
[351838719,1738810250918,-3138.7,0.00013972,2]
[351838720,1738810250928,-500.0,0.00013972,2]
[351838721,1738810250942,-500.0,0.00013972,2]
[351838722,1738810250951,-904.01,0.00013972,2]
[351838723,1738810250960,-500.0,0.00013972,2]
[351838724,1738810250970,-500.0,0.00013972,2]
[351838725,1738810250979,-510.97,0.00013972,2]
[351838726,1738810250989,-1014.45,0.00013972,2]
[351838727,1738810250999,-632.46,0.00013972,2]
[351838728,1738810251010,-1006.67624972,0.00013972,2]
[351838729,1738810251020,-504.44,0.00013972,2]
[351838730,1738810251029,-500.0,0.00013972,2]
[351838731,1738810251039,-420.64790199,0.00013972,2]
[351838732,1738810251048,-500.0,0.00013972,2]
[351838733,1738810251057,-500.0,0.00013972,2]
[351838734,1738810251067,-500.0,0.00013972,2]
[351838735,1738810251076,-1232.15,0.00013972,2]
[351838736,1738810251085,-500.0,0.00013972,2]
[351838737,1738810251095,-500.0,0.00013972,2]
[351838738,1738810251104,-700.46,0.00013972,2]
[351838739,1738810251113,-623.39,0.00013972,2]
[351838740,1738810251123,-500.0,0.00013972,2]
[351838741,1738810251133,-1336.32,0.00013972,2]
[351838742,1738810251146,-500.0,0.00013972,2]
[351838743,1738810251156,-500.0,0.00013972,2]
[351838744,1738810251166,-1406.44,0.00013972,2]
[351838745,1738810251176,-753.84,0.00013972,2]
[351838746,1738810251185,-500.0,0.00013972,2]
[351838747,1738810251195,-503.32180408,0.00013972,2]
[351838748,1738810251205,-500.0,0.00013972,2]
[351838749,1738810251215,-1594.68,0.00013972,2]
[351838750,1738810251225,-502.28906371,0.00013972,2]
[351838751,1738810251233,-662.34,0.00013972,2]
[351838752,1738810251242,-426.52110053,0.00013972,2]
[351838753,1738810251252,-500.0,0.00013972,2]
[351838754,1738810251261,-500.0,0.00013972,2]
[351838755,1738810251271,-665.16,0.00013972,2]
[351838756,1738810251280,-546.44,0.00013972,2]
[351838757,1738810251290,-177.95858718,0.00013972,2]
[351838758,1738810251300,-687.22,0.00013972,2]
[351838759,1738810251310,-500.0,0.00013972,2]
[351838760,1738810251319,-852.62,0.00013972,2]
[351838761,1738810251329,-706.0,0.00013972,2]
[351838762,1738810251338,-504.95733972,0.00013972,2]
[351838763,1738810251347,-194.59358886,0.00013972,2]
[351838764,1738810251589,-305.40641114,0.00013972,2]
[351838765,1738810251599,-500.0,0.00013972,2]
[351838766,1738810251609,-500.0,0.00013972,2]
[351838767,1738810251618,-2496.56,0.00013972,2]
[351838768,1738810251628,-290.18621503,0.00013972,2]
[351838769,1738810251637,-812.32,0.00013972,2]
[351838770,1738810251650,-958.17,0.00013972,2]
[351838771,1738810251659,-500.0,0.00013972,2]
[351838772,1738810251669,-898.34,0.00013972,2]
[351838773,1738810251678,-500.0,0.00013972,2]
[351838774,1738810251688,-500.0,0.00013972,2]
[351838775,1738810251698,-151.0,0.00013972,2]
[351838776,1738810251707,-151.0,0.00013972,2]
[351838777,1738810251717,-663.45,0.00013972,2]
[351838778,1738810251727,-682.65,0.00013972,2]
[351838779,1738810251737,-508.07147072,0.00013972,2]
[351838780,1738810251747,-379.291912,0.00013972,2]
[351838781,1738810251757,-6.93354479,0.00013972,2]
[351838782,1738810251771,-372.35836721,0.00013972,2]
[351838783,1738810251780,-40.85084692,0.00013972,2]
[351838784,1738810251884,-459.14915308,0.00013972,2]
[351838785,1738810251895,-379.291912,0.00013972,2]
[351838786,1738810251904,-379.291912,0.00013972,2]
[351838787,1738810251913,-500.0,0.00013972,2]
[351838788,1738810251922,-151.0,0.00013972,2]
[351838789,1738810251932,-151.0,0.00013972,2]
[351838790,1738810251943,-500.0,0.00013972,2]
[351838791,1738810251952,-500.0,0.00013972,2]
[351838792,1738810251962,-500.0,0.00013972,2]
[351838793,1738810251971,-2341.8,0.00013972,2]
[351838794,1738810252107,-500.0,0.00013972,2]
[351838795,1738810252117,-500.0,0.00013972,2]
[351838796,1738810252126,-151.0,0.00013972,2]
[351838797,1738810252135,-151.0,0.00013972,2]
[351838798,1738810252144,-151.0,0.00013972,2]
[351838799,1738810252154,-153.006759,0.00013972,2]
[351838800,1738810252164,-500.0,0.00013972,2]
[351838801,1738810252173,-500.0,0.00013972,2]
[351838802,1738810252182,-500.0,0.00013972,2]
[351838803,1738810252191,-500.0,0.00013972,2]
[351838804,1738810252201,-500.0,0.00013972,2]
[351838805,1738810252210,-4637.42,0.00013972,2]
[351838806,1738810252220,-500.0,0.00013972,2]
[351838807,1738810252229,-4991.57,0.00013972,2]
[351838808,1738810252239,-1508.29859535,0.00013972,2]
[351838809,1738810252501,-151.0,0.00013835,2]
[351838810,1738810252512,-500.0,0.00013972,2]
[351838811,1738810252521,-500.0,0.00013972,2]
[351838812,1738810252531,-587.11,0.00013972,2]
[351838813,1738810252542,-500.0,0.00013972,2]
[351838814,1738810252553,-2362.47,0.00013972,2]
[351838815,1738810252563,-1276.03,0.00013972,2]
[351838816,1738810252576,-500.0,0.00013972,2]
[351838817,1738810252586,-516.57,0.00013972,2]
[351838818,1738810252600,-989.58,0.00013972,2]
[351838819,1738810252611,-370.29755851,0.00013972,2]
[351838820,1738810252621,-368.86154552,0.00013972,2]
[351838821,1738810252630,-994.75,0.00013972,2]
[351838822,1738810252640,-1887.36,0.00013972,2]
[351838823,1738810252652,-521.1,0.00013972,2]
[351838824,1738810252661,-506.89075749,0.00013972,2]
[351838825,1738810252671,-2003.56,0.00013972,2]
[351838826,1738810252681,-500.0,0.00013972,2]
[351838827,1738810252690,-151.0,0.00013972,2]
[351838828,1738810252701,-151.0,0.00013972,2]
[351838829,1738810252710,-512.08,0.00013972,2]
[351838830,1738810252723,-500.0,0.00013972,2]
[351838831,1738810252733,-500.0,0.00013972,2]
[351838832,1738810252743,-151.0,0.00013972,2]
[351838833,1738810252754,-151.0,0.00013972,2]
[351838834,1738810252763,-1241.62228586,0.00013972,2]
[351838835,1738810253067,-151.0,0.00013835,2]
[351838836,1738810253076,-354.6875562,0.000139,2]
[351838837,1738810253086,-153.0,0.000139,2]
[351838838,1738810253096,-95.40771414,0.00013972,2]
[351838839,1738810253106,-6604.02,0.00013972,2]
[351838840,1738810253116,-903.81,0.00013972,2]
[351838841,1738810253126,-867.34,0.00013972,2]
[351838842,1738810253135,-500.0,0.00013972,2]
[351838843,1738810253146,-504.06740051,0.00013972,2]
[351838844,1738810253155,-500.0,0.00013972,2]
[351838845,1738810253165,-804.61,0.00013972,2]
[351838846,1738810253174,-500.76,0.00013972,2]
[351838847,1738810253184,-231.640519,0.00013972,2]
[351838848,1738810253194,-500.0,0.00013972,2]
[351838849,1738810253203,-500.0,0.00013972,2]
[351838850,1738810253213,-500.0,0.00013972,2]
[351838851,1738810253223,-500.0,0.00013972,2]
[351838852,1738810253233,-500.0,0.00013972,2]
[351838853,1738810253243,-503.57221153,0.00013972,2]
[351838854,1738810253252,-2289.92,0.00013972,2]
[351838855,1738810253262,-2192.04,0.00013972,2]
[351838856,1738810253272,-500.0,0.00013972,2]
[351838857,1738810253282,-650.87,0.00013972,2]
[351838858,1738810253292,-501.38011532,0.00013972,2]
[351838859,1738810253302,-500.0,0.00013972,2]
[351838860,1738810253312,-500.0,0.00013972,2]
[351838861,1738810253322,-5265.23,0.00013972,2]
[351838862,1738810253332,-500.0,0.00013972,2]
[351838863,1738810253341,-539.22300012,0.00013972,2]
[351838864,1738810253351,-2050.34,0.00013972,2]
[351838865,1738810253361,-500.0,0.00013972,2]
[351838866,1738810253371,-1068.57703991,0.00013972,2]
[351838867,1738810253384,-9301.05296009,0.00013972,2]
[351838868,1738810253393,-500.0,0.00013972,2]
[351838869,1738810253404,-585.43,0.00013972,2]
[351838870,1738810253414,-28076.48,0.00013972,2]
[351838871,1738810253423,-1299.0,0.00013972,2]
[351838872,1738810253433,-224.972213,0.00013972,2]
[351838873,1738810253442,-224.972213,0.00013972,2]
[351838874,1738810253451,-504.04279279,0.00013972,2]
[351838875,1738810253460,-11415.74529663,0.00013972,2]
[351838876,1738810253473,-1000.9,0.00013972,2]
[351838877,1738810253485,-680.4484889,0.00013972,2]
[351838878,1738810253497,-741.32642241,0.00013972,2]
[351838879,1738810253508,-849.52682919,0.00013972,2]
[351838880,1738810253735,-11830.93020415,0.00013972,2]
[351838881,1738810253747,-58096.26275872,0.00013972,2]
[351838882,1738810253757,-224.972213,0.00013972,2]
[351838883,1738810253767,-500.0,0.00013972,2]
[351838884,1738810253777,-224.972213,0.00013972,2]
[351838885,1738810253787,-421.5654698,0.00013972,2]
[351838886,1738810253796,-500.0,0.00013972,2]
[351838887,1738810253805,-595.85,0.00013972,2]
[351838888,1738810253815,-835.14,0.00013972,2]
[351838889,1738810253825,-500.0,0.00013972,2]
[351838890,1738810253835,-2402.88,0.00013972,2]
[351838891,1738810253845,-500.0,0.00013972,2]
[351838892,1738810253854,-4246.08,0.00013972,2]
[351838893,1738810253864,-571.62,0.00013972,2]
[351838894,1738810253874,-545.79,0.00013972,2]
[351838895,1738810253883,-505.93966102,0.00013972,2]
[351838896,1738810253893,-501.36465239,0.00013972,2]
[351838897,1738810253905,-500.0,0.00013972,2]
[351838898,1738810253915,-500.0,0.00013972,2]
[351838899,1738810253925,-142.08265326,0.00013972,2]
[351838900,1738810253940,-948.37496195,0.00013972,2]
[351838901,1738810253952,-204.82238479,0.00013972,2]
[351838902,1738810253962,-151.0,0.00013972,2]
[351838903,1738810253974,-272.222322,0.00013972,2]
[351838904,1738810253984,-2313.04,0.00013972,2]
[351838905,1738810253994,-2580.05,0.00013972,2]
[351838906,1738810254004,-500.0,0.00013972,2]
[351838907,1738810254017,-968.04,0.00013972,2]
[351838908,1738810254027,-183.0516064,0.00013972,2]
[351838912,1738811374104,-9174.3789337,0.00012673,2]
[351838920,1738811432215,-300.0,0.00012757,2]
[351838921,1738811432226,-75.0,0.00012758,2]
[351838973,1738811437977,-24149.921464,0.00012758,2]
[351838975,1738811437987,-500.0,0.0001315,2]
[351838977,1738811437996,-217.39567864,0.000134,2]
[351838979,1738811438005,-4063.12676383,0.000135,2]
[351839000,1738811438189,-226.53777327,0.000135,2]
[351839002,1738811438199,-7438.69753278,0.00013587,2]
[351839004,1738811438207,-500.98738649,0.00013673,2]
[351839006,1738811438216,-470.81306395,0.00013673,2]
[351839008,1738811438227,-29.18693605,0.00013673,2]
[351839010,1738811438237,-500.63208643,0.00013673,2]
[351839012,1738811438246,-204.64617402,0.00013673,2]
[351839014,1738811438255,-287.94344352,0.00013697,2]
[351839016,1738811438264,-181.77514552,0.00013697,2]
[351839018,1738811438272,-500.0,0.00013697,2]
[351839020,1738811438282,-601.81472543,0.00013697,2]
[351839022,1738811438291,-500.0,0.00013697,2]
[351839024,1738811438300,-500.0,0.00013697,2]
[351839026,1738811438313,-500.0,0.00013698,2]
[351839028,1738811438323,-194.56125134,0.00013698,2]
[351839030,1738811438332,-504.44275819,0.00013698,2]
[351839032,1738811438341,-580.88849509,0.00013698,2]
[351839034,1738811438351,-504.11795159,0.00013698,2]
[351839036,1738811438361,-746.34,0.00013698,2]
[351839038,1738811438370,-500.0,0.00013698,2]
[351839040,1738811438379,-504.59543926,0.00013698,2]
[351839042,1738811438392,-640.95,0.00013698,2]
[351839044,1738811438401,-500.0,0.00013698,2]
[351839046,1738811438411,-504.76946047,0.00013698,2]
[351839048,1738811438420,-500.0,0.00013698,2]
[351839050,1738811438429,-500.0,0.00013698,2]
[351839052,1738811438439,-500.0,0.00013698,2]
[351839054,1738811438448,-734.69,0.00013698,2]
[351839056,1738811438458,-500.0,0.00013698,2]
[351839058,1738811438468,-500.0,0.00013698,2]
[351839060,1738811438477,-502.09080182,0.00013698,2]
[351839062,1738811438487,-222.14699161,0.00013698,2]
[351839064,1738811438496,-500.0,0.00013698,2]
[351839066,1738811438505,-500.0,0.00013698,2]
[351839068,1738811438514,-500.0,0.00013698,2]
[351839070,1738811438524,-500.0,0.00013698,2]
[351839072,1738811438533,-500.0,0.00013698,2]
[351839074,1738811438542,-506.59468459,0.00013698,2]
[351839076,1738811438552,-593.5,0.00013698,2]
[351839078,1738811438562,-500.0,0.00013698,2]
[351839080,1738811438571,-604.73,0.00013698,2]
[351839082,1738811438581,-500.0,0.00013698,2]
[351839084,1738811438591,-500.0,0.00013698,2]
[351839086,1738811438600,-500.83085211,0.00013698,2]
[351839088,1738811438610,-1208.66,0.00013698,2]
[351839090,1738811438619,-505.80442311,0.00013698,2]
[351839092,1738811438628,-500.73384987,0.00013698,2]
[351839094,1738811438641,-714.0,0.00013698,2]
[351839096,1738811438650,-500.82314003,0.00013698,2]
[351839098,1738811438659,-683.37,0.00013698,2]
[351839100,1738811438668,-500.0,0.00013698,2]
[351839102,1738811438677,-504.44,0.00013698,2]
[351839104,1738811438687,-632.46,0.00013698,2]
[351839106,1738811438697,-1000.0,0.00013698,2]
[351839108,1738811438707,-500.0,0.00013698,2]
[351839111,1738811438716,-500.0,0.00013698,2]
[351839113,1738811438726,-500.0,0.00013698,2]
[351839115,1738811438737,-500.0,0.00013698,2]
[351839116,1738811438745,-500.0,0.00013698,2]
[351839118,1738811438755,-500.0,0.00013698,2]
[351839120,1738811438765,-500.64825319,0.00013698,2]
[351839122,1738811438775,-458.35498242,0.00013698,2]
[351839125,1738811438788,-41.64501758,0.00013698,2]
[351839127,1738811438797,-500.0,0.00013698,2]
[351839129,1738811438806,-502.38044612,0.00013698,2]
[351839131,1738811438816,-500.0,0.00013698,2]
[351839133,1738811438825,-500.0,0.00013698,2]
[351839135,1738811438834,-500.0,0.00013698,2]
[351839137,1738811438844,-500.0,0.00013698,2]
[351839139,1738811438854,-502.86323231,0.00013698,2]
[351839141,1738811438863,-540.08194624,0.00013698,2]
[351839143,1738811438874,-502.82266471,0.00013698,2]
[351839145,1738811438884,-597.30409777,0.00013698,2]
[351839147,1738811438894,-500.0,0.00013698,2]
[351839149,1738811438903,-500.0,0.00013698,2]
[351839151,1738811438912,-500.0,0.00013698,2]
[351839153,1738811438921,-500.0,0.00013698,2]
[351839155,1738811438931,-500.0,0.00013698,2]
[351839157,1738811438941,-479.85535147,0.00013698,2]
[351839159,1738811438950,-500.0,0.00013698,2]
[351839161,1738811438959,-685.99,0.00013698,2]
[351839163,1738811438969,-501.77187936,0.00013698,2]